{"text_format":"1","workbook":"xlsx","n_sheets":10,"sheets":["0-Hinweise","1-Grunddaten","2-Stellenplan","3-Perso.aufw.","4-Invest.kosten","5-Sachaufwand","6-Ergebnis","7-Niederschrift","8-Niederschrift (frei)","Info-Katalog"],"not_rendered":{"charts":0,"images":0,"macros":1,"external_links":1,"defined_names":54,"comments":1,"pivot_tables":0},"unopened":[],"bounds":{"document_bytes":16777216,"sheet_cells":100000,"rows_first":2000,"rows_last":500,"rows_between":2000,"halvings":0,"cell_chars":16384,"cell_head_chars":4096},"cells_cut":0,"cells_raw":0,"read":"whole","date_system":"1900"}

{"sheet":"0-Hinweise","index":0,"n_rows":21,"n_cols":2,"rows_kept":21,"cut":false,"hidden":false,"merged":[[6,0,6,1],[0,0,0,2],[4,0,4,2],[8,0,8,1]]}
["Antrag auf Vereinbarung eines Leistungsentgeltes gemäß § 78 b SGB VIII"]
[]
["Hinweise"]
[]
["Die folgenden Seiten beinhalten das am 17.01.2007 in der Landeskommission Jugendhilfe NRW beschlossene Kalkulationsschema zur Beantragung eines Leistungsentgeltes für Einrichtungen, die Leistungen gemäß §78a SGB VIII Abs. 1 Nr. 4b, 4c und 5b erbringen."]
[]
["Nachstehend einige Bearbeitungshinweise:"]
[]
["Die Schaltflächen auf den verschiedenen Seite sind nur mit \"aktivierten Makros\" funktionsfähig. Deaktivierte Makros beinträchtigen die Berechnungen und die herkömmliche Navigation im Dokument nicht."]
[]
["1.","Die gelb hinterlegten Felder sind für die Dateneingabe vorgesehen, wohingegen die grün hinterlegten Felder eine Formel enthalten und Berechnungen automatisch ausführen. Die einzelnen Seiten enthalten einen Blattschutz zur Vermeidung versehentlicher Fehleingaben."]
[]
["2.","Die blau hinterlegten Felder \"Ergebnis\" auf den Seiten \"Grunddaten\", Perso.aufw.\", Sachaufwand\" und \"Investitionskosten\" geben die Gesamtentgelte (Basisentgelt + pädagogischer Zuschlag) in den jeweiligen Angeboten wieder, wie diese auf der Seite \"Ergebnis\" berechnet werden. Die Felder haben nur informatorischen Charakter und werden nicht mit ausgedruckt. Das blau hinterlegte Feld \"Angebotsstruktur\" auf der Seite \"Stellenplan\", gibt die gruppierte Zusammenfassung der Plätze in den einzelnen Angeboten wieder, wie diese auf der Seite \"Grunddaten\" angezeigt werden."]
[]
["3.","Die Seiten des Schemas sind in Ihrer Reihenfolge zu bearbeiten. Insofern sollte /ggfs. nach Eingabe der Grunddaten) zunächst die Platzzahlen und der pädagogische Dienst der jeweiligen Angebote auf der Seite \"Stellenplan\" bearbeitet werden. Änderungen sind hier jederzeit möglich."]
[]
["4.","Die Eingabe der Platzzahlen erfolgt auf der Seite \"Stellenplan\" und werden dann automatisch unter den entsprechenden Rubriken auf der Seite \"Grunddaten\" übertragen."]
[]
["5.","Die beiden letzten Seiten \"Niederschrift …\" geben die festgelegte Vereinbarungsniederschrift des Entgeltverhandlungsergebnisses wieder. Die Seite \"Niederschrift\" ist fest mit den entsprechenden Feldern des Kalkulationsschemas verbunden; die Seite \"Niederschrift /frei)\" kann hingegen auf den gelb hinterlegten Feldern, also auch unter Punkt 3. individuell verändert werden, um Vereinbarungen zu dokumentieren, die vom Ergebnis des Kalkulationsschemas abweichen."]
[]
["6.","Die Niederschrift ist seitens des zuständigen Trägers der Jugendhilfe umgehend der Entgeltstelle-Jugendhilfe des jeweiligen Landschaftsverbandes zuzuleiten."]

{"sheet":"1-Grunddaten","index":1,"n_rows":72,"n_cols":21,"rows_kept":72,"cut":false,"hidden":false,"merged":[[9,3,9,10],[18,12,18,15],[0,0,0,17],[45,10,45,12],[52,10,52,12],[59,10,59,12],[33,12,33,13],[3,1,3,16],[23,12,23,15],[23,3,23,10],[8,3,8,10],[20,3,20,10],[10,3,10,10],[11,3,11,10],[12,3,12,10],[19,12,19,15],[20,12,20,15],[16,3,16,10],[17,3,17,10],[18,3,18,10],[19,3,19,10]]}
["Antrag auf Vereinbarung eines Leistungsentgeltes gemäß § 78 b SGB VIII"]
[]
[]
[null,"G r u n d -   u n d   L e i s t u n g s d a t e n"]
[]
[null,null,"Einrichtung"]
[]
[null,null,null,"Name und Anschrift der Einrichtung:",null,null,null,null,null,null,null,null,"örtlicher Träger der öffentlichen Jugendhilfe"]
[]
[]
[]
[]
[null,null,null,null,null,null,null,null,null,null,null,null,"hauptbelegender Träger der öffentl. Jugendhilfe 1):"]
[]
[]
[null,null,null,"Name und Anschrift des Trägers:"]
[]
[null,null,null,null,null,null,null,null,null,null,null,null,"Spitzen-, Träger- bzw. Interessenverband:"]
[]
[]
[]
[]
[null,null,null,"Aktenzeichen der Betriebserlaubnis",null,null,null,null,null,null,null,null,"Aktenzeichen Einrichtungsträger"]
[]
[]
[]
[null,null,"Angebotsstruktur für Leistungen nach § 78a Abs. 1 Nr. 4b, 4c und 5b SGB XIII (vormals RV I)"]
[]
[]
[null,null,null,null,null,null,null,"Platzzahl",null,null,"weitere Leistungen (bitte ankreuzen)"]
[null,null,null,null,null,null,null,null,null,null,"nachrichtlich gem. Leistungsvereinbarung"]
[null,null,null,"Intensivangebote",null,null,null,{"$f":"IF('6-Ergebnis'!I7=\"Intensivangebot\",'6-Ergebnis'!C7,0)\n+IF('6-Ergebnis'!I8=\"Intensivangebot\",'6-Ergebnis'!C8,0)\n+IF('6-Ergebnis'!I9=\"Intensivangebot\",'6-Ergebnis'!C9,0)\n+IF('6-Ergebnis'!I10=\"Intensivangebot\",'6-Ergebnis'!C10,0)\n+IF('6-Ergebnis'!I11=\"Intensivangebot\",'6-Ergebnis'!C11,0)\n+IF('6-Ergebnis'!I12=\"Intensivangebot\",'6-Ergebnis'!C12,0)\n+IF('6-Ergebnis'!I13=\"Intensivangebot\",'6-Ergebnis'!C13,0)\n+IF('6-Ergebnis'!I14=\"Intensivangebot\",'6-Ergebnis'!C14,0)\n+IF('6-Ergebnis'!I15=\"Intensivangebot\",'6-Ergebnis'!C15,0)\n+IF('6-Ergebnis'!I16=\"Intensivangebot\",'6-Ergebnis'!C16,0)\n+IF('6-Ergebnis'!I17=\"Intensivangebot\",'6-Ergebnis'!C17,0)\n+IF('6-Ergebnis'!I18=\"Intensivangebot\",'6-Ergebnis'!C18,0)","v":0},null,null,"q",null,"Berufsausbildung"]
[null,null,null,"Regelangebote",null,null,null,{"$f":"IF('6-Ergebnis'!I7=\"Regelangebot\",'6-Ergebnis'!C7,0)\n+IF('6-Ergebnis'!I8=\"Regelangebot\",'6-Ergebnis'!C8,0)\n+IF('6-Ergebnis'!I9=\"Regelangebot\",'6-Ergebnis'!C9,0)\n+IF('6-Ergebnis'!I10=\"Regelangebot\",'6-Ergebnis'!C10,0)\n+IF('6-Ergebnis'!I11=\"Regelangebot\",'6-Ergebnis'!C11,0)\n+IF('6-Ergebnis'!I12=\"Regelangebot\",'6-Ergebnis'!C12,0)\n+IF('6-Ergebnis'!I13=\"Regelangebot\",'6-Ergebnis'!C13,0)\n+IF('6-Ergebnis'!I14=\"Regelangebot\",'6-Ergebnis'!C14,0)\n+IF('6-Ergebnis'!I15=\"Regelangebot\",'6-Ergebnis'!C15,0)\n+IF('6-Ergebnis'!I16=\"Regelangebot\",'6-Ergebnis'!C16,0)\n+IF('6-Ergebnis'!I17=\"Regelangebot\",'6-Ergebnis'!C17,0)\n+IF('6-Ergebnis'!I18=\"Regelangebot\",'6-Ergebnis'!C18,0)","v":0},null,null,"q",null,"Schule "]
[null,null,null,"Angebote mit niedrigerem",null,null,null,{"$f":"IF('6-Ergebnis'!I7=\"Angebot m. niedr. Betreuungsaufw.\",'6-Ergebnis'!C7,0)\n+IF('6-Ergebnis'!I8=\"Angebot m. niedr. Betreuungsaufw.\",'6-Ergebnis'!C8,0)\n+IF('6-Ergebnis'!I9=\"Angebot m. niedr. Betreuungsaufw.\",'6-Ergebnis'!C9,0)\n+IF('6-Ergebnis'!I10=\"Angebot m. niedr. Betreuungsaufw.\",'6-Ergebnis'!C10,0)\n+IF('6-Ergebnis'!I11=\"Angebot m. niedr. Betreuungsaufw.\",'6-Ergebnis'!C11,0)\n+IF('6-Ergebnis'!I12=\"Angebot m. niedr. Betreuungsaufw.\",'6-Ergebnis'!C12,0)\n+IF('6-Ergebnis'!I13=\"Angebot m. niedr. Betreuungsaufw.\",'6-Ergebnis'!C13,0)\n+IF('6-Ergebnis'!I14=\"Angebot m. niedr. Betreuungsaufw.\",'6-Ergebnis'!C14,0)\n+IF('6-Ergebnis'!I15=\"Angebot m. niedr. Betreuungsaufw.\",'6-Ergebnis'!C15,0)\n+IF('6-Ergebnis'!I16=\"Angebot m. niedr. Betreuungsaufw.\",'6-Ergebnis'!C16,0)\n+IF('6-Ergebnis'!I17=\"Angebot m. niedr. Betreuungsaufw.\",'6-Ergebnis'!C17,0)\n+IF('6-Ergebnis'!I18=\"Angebot m. niedr. Betreuungsaufw.\",'6-Ergebnis'!C18,0)","v":0},null,null,"q",null,"Zusatzleistung per Fachleistungsstunden"]
[null,null,null,"Betreuungsaufwand",null,null,null,null,null,null,"q",null,"sonstige Leistungen z.B. Projekte:"]
[null,null,null,"Summe",null,null,null,{"$f":"SUM(H32:H35)","v":0}]
[]
[]
[]
[]
[]
[null,null,"Leistungsdaten"]
[]
[]
[null,null,"für abgeschlossenen Wirtschaftszeitraum 3)",null,null,null,null,null,null,null,null,null,null,null,null,null,null,null,null,"Ergebnis"]
[null,null,null,null,null,null,null,null,null,null,"für den Zeitraum:"]
[null,null,null,"bezogen auf ",null,null,null,"Plätze",null,null,null,"-",null,null,null,null,null,null,null,{"$f":"'6-Ergebnis'!B65","v":""},{"$f":"'6-Ergebnis'!I65","v":""}]
[null,null,null,null,null,null,null,null,null,null,null,null,null,null,null,null,null,null,null,{"$f":"'6-Ergebnis'!B66","v":""},{"$f":"'6-Ergebnis'!I66","v":""}]
[null,null,null,null,null,null,null,null,null,null,null,null,"Auslastungs-\ngrad","Abwesen-\nheitsquote",null,null,null,null,null,{"$f":"'6-Ergebnis'!B67","v":""},{"$f":"'6-Ergebnis'!I67","v":""}]
[null,null,null,null,null,null,null,null,null,null,null,null,null,null,null,null,null,null,null,{"$f":"'6-Ergebnis'!B68","v":""},{"$f":"'6-Ergebnis'!I68","v":""}]
[null,null,null,null,null,null,null,null,null,null,null,null,null,null,null,null,null,null,null,{"$f":"'6-Ergebnis'!B69","v":""},{"$f":"'6-Ergebnis'!I69","v":""}]
[null,null,"für laufenden Wirtschaftszeitraum - hochgerechnet 3)",null,null,null,null,null,null,null,null,null,null,null,null,null,null,null,null,{"$f":"'6-Ergebnis'!B70","v":""},{"$f":"'6-Ergebnis'!I70","v":""}]
[null,null,null,null,null,null,null,null,null,null,"für den Zeitraum:",null,null,null,null,null,null,null,null,{"$f":"'6-Ergebnis'!B71","v":""},{"$f":"'6-Ergebnis'!I71","v":""}]
[null,null,null,"bezogen auf ",null,null,null,"Plätze",null,null,null,"-",null,null,null,null,null,null,null,{"$f":"'6-Ergebnis'!B72","v":""},{"$f":"'6-Ergebnis'!I72","v":""}]
[null,null,null,null,null,null,null,null,null,null,null,null,null,null,null,null,null,null,null,{"$f":"'6-Ergebnis'!B73","v":""},{"$f":"'6-Ergebnis'!I73","v":""}]
[null,null,null,"Betreuungs-\ntage",null," Abwesen-\nheitstage",null,"Berechnungs-\ntage 4)",null,null,null,null,"Auslastungs-\ngrad","Abwesen-\nheitsquote",null,null,null,null,null,{"$f":"'6-Ergebnis'!B74","v":""},{"$f":"'6-Ergebnis'!I74","v":""}]
[null,null,null,null,null,null,null,{"$f":"IF(D57=0,\"\",ROUND(D57+F57*0.8,0))","v":""},null,null,null,null,{"$f":"IF(H57=\"\",\"\",ROUND((D57+F57)/F54/365,4))","v":""},{"$f":"IF(H57=\"\",\"\",ROUND(F57/(D57+F57),4))","v":""},null,null,null,null,null,{"$f":"'6-Ergebnis'!B75","v":""},{"$f":"'6-Ergebnis'!I75","v":""}]
[null,null,null,null,null,null,null,null,null,null,null,null,null,null,null,null,null,null,null,{"$f":"'6-Ergebnis'!B76","v":""},{"$f":"'6-Ergebnis'!I76","v":""}]
[]
[null,null,"prospektiv",null,null,null,null,null,null,null,"für den Zeitraum:"]
[null,null,null,null,null,null,null,null,null,null,null,"-"]
[]
[null,null,null,"Betreuungs-\ntage",null," Abwesen-\nheitstage",null,"Berechnungs-\ntage 4)",null,null,null,null,"Auslastungs-\ngrad","Abwesen-\nheitsquote"]
[null,null,null,{"$f":"IF(Auslastung=\"\",\"\",(Tage*Auslastung*PlatzGesamt-F64))","v":""},null,{"$f":"ROUND(Tage*Auslastung*AbwesenheitProzent*PlatzGesamt,0)","v":0},null,{"$f":"IF(BetreTGesamt=\"\",\"\",(D64+(F64*0.8)))","v":""},null,null,null,null,null,null,null,null,null,null,null,365]
[]
[]
[]
[]
[null,"1)    Hauptbeleger ist der öffentl. Träger der Jugendhilfe, der bei Verhandlungsbeginn die meisten Betreuungstage in Anspruch nimmt."]
[null,"2)   Leistungsangebote nach §§ 13 Abs. 3, 19, 32 und 35a A SGB VIII werden in gesonderten Anträgen kalkuliert."]
[null,"3)   i.d.R. 12 Monate; gilt auch im Folgenden"]
[null,"4)  Für die Ermittlung der Berechnungstage werden die Abwesenheitstage, mit 80% bewertet, den Betreuungstagen hinzugerechnet."]

{"sheet":"2-Stellenplan","index":2,"n_rows":35,"n_cols":23,"rows_kept":35,"cut":false,"hidden":false,"merged":[[3,9,3,20],[4,9,4,20],[5,6,5,8],[24,4,24,5],[25,4,25,5],[6,4,6,5],[14,4,14,5],[16,4,16,5],[18,4,18,5],[20,4,20,5]]}
[]
[null,null,"S t e l l e n p l a n"]
[]
[null,null,null,null,null,null,null,null,null,"Differenzierung nach Gruppe / Hilfeform"]
[null,null,null,null,null,null,null,null,null,"Angebot Nr. (Spalten fortlaufen ausfüllen; keine leeren Spalten)"]
[null,null,null,null,null,null,"Stellen je Funktionsbereich",null,null,1,{"$f":"IF(K8>0,J6+1,\"\")","v":""},{"$f":"IF(L8>0,K6+1,\"\")","v":""},"","","","","","","","",""]
[null,null,"Funktionsbereiche",null," Personal- schlüssel ",null,"abge-\nschlossener \nWirtschafts-\nzeitraum","laufender \nWirtschafts-\nzeitraum -\nhochgerechnet","Prospektiver\nZeitraum",{"$f":"'6-Ergebnis'!I7","v":""},{"$f":"'6-Ergebnis'!I8","v":""},{"$f":"'6-Ergebnis'!I9","v":""},{"$f":"'6-Ergebnis'!I10","v":""},{"$f":"'6-Ergebnis'!I11","v":""},{"$f":"'6-Ergebnis'!I12","v":""},{"$f":"'6-Ergebnis'!I13","v":""},{"$f":"'6-Ergebnis'!I14","v":""},{"$f":"'6-Ergebnis'!I15","v":""},{"$f":"'6-Ergebnis'!I16","v":""},{"$f":"'6-Ergebnis'!I17","v":""},{"$f":"'6-Ergebnis'!I18","v":""},"Verselb- ständi- gungs- angebot 3","Verselb- ständi- gungs- angebot 4"]
[null,null,null,"Platzzahl:",null,null,null,null,{"$f":"SUM(J8:U8)","v":0},null,null,null,null,null,null,null,null,null,null,null,null,0,0]
[null,null,null,null,"individuell",null,null,null,null,{"$f":"IF(J8<>0,J8/J10,0)","v":0},0,0,0,0,0,0,0,{"$f":"IF(R8<>0,R8/R10,0)","v":0},{"$f":"IF(S8<>0,S8/S10,0)","v":0},{"$f":"IF(T8<>0,T8/T10,0)","v":0},{"$f":"IF(U8<>0,U8/U10,0)","v":0}]
[null,"1.","Pädagogischer Dienst       (*1)",null,null,null,null,null,{"$f":"SUM(J10:U10)","v":0},null,null,null,null,null,null,null,null,null,null,null,null,2,3]
[null,null,"   davon:"]
[null,null,"     Praktikanten im"]
[null,null,"     Anerkennungsjahr        (*2)",null,null,null,null,null,{"$f":"SUM(J13:U13)","v":0}]
[null,null,null,null,"1 :",{"$f":"IF(I8=0,\"\",IF(AND(10<=$I$8,$I$8<23),18,IF(AND(23<=$I$8,$I$8<=63),22.5,IF(63<$I$8,24,32))))","v":""}]
[null,"2. ","Leitung / Beratung 3)",null,{"$f":"IF(F14=\"\",\"\",PlatzGesamt/F14)","v":""}]
[null,null,null,null,"1 :",9,null,null,null,null,"1)  In der Zahl der VK ist die Nachtbereitschaft im päd. Dienst entsprechend bewertet."]
[null,"3.","Wirtschaftsdienst ",null,{"$f":"PlatzGesamt/9","v":0},null,null,null,null,null,"2)  Praktikantenstellen sind mit 0,5 VK im \"pädagogischen Dienst\" anzusetzen."]
[null,null,null,null,"1 :",30,null,null,null,null,"3)  Personalschlüssel in Abhängigkeit zur Größe der (Gesamt-)Einrichtung:"]
[null,"4.","Verwaltungsdienst",null,{"$f":"PlatzGesamt/30","v":0},null,null,null,null,null,{"$f":"\"           1 :  18\"","v":"           1 :  18"},null,"(Einrichtungen  <  23  Plätze)"]
[null,null,null,null,null,null,null,null,null,null,{"$f":"\"           1 :  22,5\"","v":"           1 :  22,5"},null,"(Einrichtungen  23  -  63  Plätze)"]
[null,"5.","Berufsausbildung",null," ",null,null,null,null,null,{"$f":"\"           1 :  24\"","v":"           1 :  24"},null,"(Einrichtungen  >  63  Plätze)"]
[null,null,null,null,null,null,null,null,null,null,{"$f":"\"           1 :  32\"","v":"           1 :  32"},null,"(Selbstständige Einrichtungen  <  10  Plätze)"]
[null,"6.","Sonstiges Personal "]
[null,null,"(BFD, FSJ,",null,"1 :",25]
[null,null,"Vorpraktikanten u.ä.)",null,{"$f":"PlatzGesamt/25","v":0}]
[]
[]
[null,null,"Vollkräfte Pkt. 1 - 5",null,null,null,null,null,{"$f":"I10+I15+I17+I19+I21","v":0}]
[null,null,"Vollkräfte Pkt. 6",null,null,null,null,null,{"$f":"SUM(I24:I26)","v":0}]
[]
[null,"Angebotsstruktur:",null,"Intensivangebote",null,null,null,{"$f":"'1-Grunddaten'!H32","v":0},null,"Platzzahl",null,"Schlüssel Leitung"]
[null,"(vgl. Grunddaten)",null,"Regelangebote",null,null,null,{"$f":"'1-Grunddaten'!H33","v":0},null,"bis 22",null,"1:18,0"]
[null,null,null,"Angebote mit niedrigerem Betr.aufwand",null,null,null,{"$f":"'1-Grunddaten'!H34","v":0},null,"23-63",null,"1:22,5"]
[null,null,null,null,null,null,null,null,null,"> 63",null,"1:24,0"]
[null,null,null,null,null,null,null,null,null,"< 10 selbst.Einr.",null,"1:32,0"]

{"sheet":"3-Perso.aufw.","index":3,"n_rows":18,"n_cols":13,"rows_kept":18,"cut":false,"hidden":false,"merged":[[1,1,1,9],[13,1,13,6]]}
[]
[null,"P e r s o n a l k o s t e n"]
[]
[null,"Funktionsbereiche","abge-\nschlossener \nWirtschafts-\nzeitraum","je Vollkraft","laufender \nWirtschafts-\nzeitraum - \nhochgerechnet","je Vollkraft","Ver-\nänderung \nin % je VK","kalkulierter\nWirtschafts-\nzeitraum","je Vollkraft","Ver-\nänderung \nin % je VK",null,"Ergebnis"]
[null,"Pädagogischer Dienst  ",null,{"$f":"IF(C5=0,\"\",C5/'2-Stellenplan'!G10)","v":""},null,{"$f":"IF(E5=0,\"\",E5/'2-Stellenplan'!H10)","v":""},{"$f":"IF(D5=\"\",\"\",F5/D5-1)","v":""},null,{"$f":"IF(H5=0,\"\",ROUND(H5/('2-Stellenplan'!I10),0))","v":""},{"$f":"IF(F5=\"\",\"\",I5/F5-1)","v":""},null,{"$f":"'6-Ergebnis'!B65","v":""},{"$f":"'6-Ergebnis'!I65","v":""}]
[null,"Leitung / Beratung ",null,null,null,null,null,null,{"$f":"IF(H6=0,\"\",ROUND(H6/('2-Stellenplan'!I15),0))","v":""},null,null,{"$f":"'6-Ergebnis'!B66","v":""},{"$f":"'6-Ergebnis'!I66","v":""}]
[null,"Wirtschaftsdienst",null,null,null,null,null,null,{"$f":"IF(H7=0,\"\",ROUND(H7/('2-Stellenplan'!I17),0))","v":""},null,null,{"$f":"'6-Ergebnis'!B67","v":""},{"$f":"'6-Ergebnis'!I67","v":""}]
[null,"Verwaltung",null,null,null,null,null,null,{"$f":"IF(H8=0,\"\",ROUND(H8/'2-Stellenplan'!I19,0))","v":""},null,null,{"$f":"'6-Ergebnis'!B68","v":""},{"$f":"'6-Ergebnis'!I68","v":""}]
[null,"Berufsausbildung",null,null,null,null,null,null,{"$f":"IF(H9=0,\"\",ROUND(H9/'2-Stellenplan'!I21,0))","v":""},null,null,{"$f":"'6-Ergebnis'!B69","v":""},{"$f":"'6-Ergebnis'!I69","v":""}]
[null,"BFD, FSJ, Vorpraktikant. u.ä.",null,null,null,null,null,null,null,null,null,{"$f":"'6-Ergebnis'!B70","v":""},{"$f":"'6-Ergebnis'!I70","v":""}]
[null,"Sonstiger Personalaufwand (*1)",null,null,null,null,null,null,null,null,null,{"$f":"'6-Ergebnis'!B71","v":""},{"$f":"'6-Ergebnis'!I71","v":""}]
[null,"Gesamtsumme \nPersonalaufwand",null,null,{"$f":"SUM(E5:E11)","v":0},null,null,{"$f":"SUM(H5:H11)","v":0},{"$f":"IF(H12=0,\"\",H12/'2-Stellenplan'!I28)","v":""},null,null,{"$f":"'6-Ergebnis'!B72","v":""},{"$f":"'6-Ergebnis'!I72","v":""}]
[null,null,null,null,null,null,null,null,null,null,null,{"$f":"'6-Ergebnis'!B73","v":""},{"$f":"'6-Ergebnis'!I73","v":""}]
[null,"Erlöse aus Fachleistungsstunden, soweit die Personalkosten hierfür in den kalkulierten Kosten enthalten sind.",null,null,null,null,null,null,null,null,null,{"$f":"'6-Ergebnis'!B74","v":""},{"$f":"'6-Ergebnis'!I74","v":""}]
[null,null,null,null,null,null,null,null,null,null,null,{"$f":"'6-Ergebnis'!B75","v":""},{"$f":"'6-Ergebnis'!I75","v":""}]
[null,"Gesamtsumme Personalaufwand",null,null,null,null,null,{"$f":"H12-H14","v":0}]
[null,null,null,null,null,null,null,null,null,null,null,{"$f":"'6-Ergebnis'!B76","v":""},{"$f":"'6-Ergebnis'!I76","v":""}]
[null,"1) z.B. Kosten für Fortbildung und Supervision, Berufsgenossenschaftsbeiträge"]

{"sheet":"4-Invest.kosten","index":4,"n_rows":47,"n_cols":13,"rows_kept":47,"cut":false,"hidden":false,"merged":[[11,3,11,4],[17,3,17,4],[18,3,18,4],[16,5,16,8],[5,5,5,8],[15,5,15,8],[9,3,9,4],[15,3,15,4],[13,3,13,4],[10,3,10,4],[8,3,8,4],[7,3,7,4],[14,5,14,8],[4,3,4,4],[5,3,5,4],[10,5,10,8],[9,5,9,8],[8,5,8,8],[7,5,7,8],[6,5,6,8],[6,3,6,4],[1,1,1,8],[40,3,40,4],[41,3,41,4],[38,3,38,4],[39,3,39,4],[34,3,34,4],[17,5,17,8],[18,5,18,8],[30,3,30,4],[30,7,30,8],[17,1,17,2],[5,1,5,2],[6,1,6,2],[7,1,7,2],[8,1,8,2],[20,5,20,8],[9,1,9,2],[10,1,10,2],[41,5,41,8],[14,1,14,2],[15,1,15,2],[35,3,35,4],[32,3,32,4],[33,3,33,4],[19,3,19,4],[20,3,20,4],[22,3,22,4],[16,1,16,2],[16,3,16,4],[11,5,11,8],[19,5,19,8],[14,3,14,4],[43,5,43,8],[18,1,18,2],[19,1,19,2],[46,1,46,8],[43,3,43,4],[33,5,33,8],[34,5,34,8],[35,5,35,8],[39,5,39,8],[40,5,40,8]]}
[]
[null,"Differenzierung der Investitionskosten "]
[]
[null,"Mieten 1):"]
[null,"Objekt / Gruppe:",null,"laufender Wirtschaftszeitraum \n- hochgerechnet -",null,null,null,"Kalkulationszeitraum"]
[]
[]
[]
[null,null,null,null,null,null,null,null,null,null,null,"Ergebnis"]
[null,null,null,null,null,null,null,null,null,null,null,{"$f":"'6-Ergebnis'!B65","v":""},{"$f":"'6-Ergebnis'!I65","v":""}]
[null,null,null,null,null,null,null,null,null,null,null,{"$f":"'6-Ergebnis'!B66","v":""},{"$f":"'6-Ergebnis'!I66","v":""}]
[null,"Summe:",null,{"$f":"SUM(D6:D11)","v":0},null,{"$f":"SUM(F6:F11)","v":0},null,null,null,null,null,{"$f":"'6-Ergebnis'!B67","v":""},{"$f":"'6-Ergebnis'!I67","v":""}]
[null,"Zinsen /Erbpacht 1):",null,null,null,null,null,null,null,null,null,{"$f":"'6-Ergebnis'!B68","v":""},{"$f":"'6-Ergebnis'!I68","v":""}]
[null,null,null,"laufender Wirtschaftszeitraum \n- hochgerechnet -",null,null,null,"Kalkulationszeitraum",null,null,null,{"$f":"'6-Ergebnis'!B69","v":""},{"$f":"'6-Ergebnis'!I69","v":""}]
[null,null,null,null,null,null,null,null,null,null,null,{"$f":"'6-Ergebnis'!B70","v":""},{"$f":"'6-Ergebnis'!I70","v":""}]
[null,null,null,null,null,null,null,null,null,null,null,{"$f":"'6-Ergebnis'!B71","v":""},{"$f":"'6-Ergebnis'!I71","v":""}]
[null,null,null,null,null,null,null,null,null,null,null,{"$f":"'6-Ergebnis'!B72","v":""},{"$f":"'6-Ergebnis'!I72","v":""}]
[null,null,null,null,null,null,null,null,null,null,null,{"$f":"'6-Ergebnis'!B73","v":""},{"$f":"'6-Ergebnis'!I73","v":""}]
[null,null,null,null,null,null,null,null,null,null,null,{"$f":"'6-Ergebnis'!B74","v":""},{"$f":"'6-Ergebnis'!I74","v":""}]
[null,null,null,null,null,null,null,null,null,null,null,{"$f":"'6-Ergebnis'!B75","v":""},{"$f":"'6-Ergebnis'!I75","v":""}]
[null,"Summe:",null,{"$f":"SUM(D15:D20)","v":0},null,{"$f":"SUM(F15:F20)","v":0},null,null,null,null,null,{"$f":"'6-Ergebnis'!B76","v":""},{"$f":"'6-Ergebnis'!I76","v":""}]
[null,"  Substanzerhaltungspauschale 1):"]
[null,"Objekt / Gruppe:",null,"laufender Wirtschaftszeitraum \n- zuletzt vereinbart -",null,null,null,"Kalkulationszeitraum"]
[null,"Bezeichnung","Plätze","pro Platz","gesamt","\"M\" 3)\n\"E\"....","Plätze","pro Platz","gesamt"]
[null,null,null,null,{"$f":"IF(D25=0,\"\",C25*D25)","v":""},null,null,null,{"$f":"IF(H25=0,\"\",G25*H25)","v":""}]
[null,null,null,null,"",null,null,null,""]
[null,null,null,null,"",null,null,null,""]
[null,null,null,null,"",null,null,null,""]
[null,null,null,null,"",null,null,null,""]
[null,null,null,null,"",null,null,null,""]
[null,"Summe:",{"$f":"SUM(C25:C30)","v":0},{"$f":"SUM(E25:E30)","v":0},null,null,{"$f":"SUM(G25:G30)","v":0},{"$f":"SUM(I25:I30)","v":0}]
[null,"Sonstiges (z.B. Kfz-Pauschale) 1):"]
[null,null,null,"laufender Wirtschaftszeitraum \n- hochgerechnet -",null,null,null,"Kalkulationszeitraum"]
[]
[]
[null,"Summe:",null,{"$f":"SUM(D34:E35)","v":0},null,{"$f":"SUM(F34:F35)","v":0}]
[null,"Entgeltrelevante Abzüge:"]
[null,"(Personalwohnungen, Nebenbetriebe)"]
[null,null,null,"laufender Wirtschaftszeitraum \n- hochgerechnet -",null,null,null,"Kalkulationszeitraum"]
[]
[]
[null,"Summe:",null,{"$f":"SUM(D40:D41)","v":0},null,{"$f":"SUM(F40:F41)","v":0}]
[]
[null,"Summe Investitionskosten:",null,{"$f":"D12+D21+D31+D36-D42","v":0},null,{"$f":"F12+F21+H31+F36-F42","v":0}]
[]
[null,"1) Bei Bedarf können zusätzliche Zeilen eingefügt werden."]
[null,"2) Kennzeichung wenn Plätze Mietobjekt (=M), in Eigentum (=E)."]

{"sheet":"5-Sachaufwand","index":5,"n_rows":36,"n_cols":10,"rows_kept":36,"cut":false,"hidden":false,"merged":[[30,1,30,2],[24,3,24,4],[25,3,25,4],[25,5,25,6],[24,5,24,6],[17,1,17,2],[1,1,1,6],[13,1,13,2],[4,3,4,4],[5,3,5,4],[15,1,15,2],[3,1,3,6],[4,5,4,6],[5,5,5,6]]}
[]
[null,"Ü b e r s i c h t  d e r  S a c h k o s t e n "]
[]
[null,"variabler / belegungsabhängiger Sachaufwand"]
[null,null,null,"laufender Wirtschaftszeitraum \n- hochgerechnet -",null,"Kalkulationszeitraum","Kalkulations- zeitraum"]
[null,"Aufwandsarten",null,"betriebsbezogener Aufwand",null,"betriebsbezogener Aufwand"]
[]
[null,"Sachaufwand (*1):",null,"pro Jahr","pro Kalendertag","pro Jahr","pro Kalendertag"]
[null,"Lebensmittel",null,null,{"$f":"IF(D9=0,0,ROUND(D9/Tage/'1-Grunddaten'!$F$54,2))","v":0},{"$f":"IF(G9=0,\"\",G9*PlatzGesamt*Tage)","v":""}]
[null,"med. Bedarf",null,null,{"$f":"IF(D10=0,0,ROUND(D10/Tage/'1-Grunddaten'!$F$54,2))","v":0},{"$f":"IF(G10=0,\"\",G10*PlatzGesamt*Tage)","v":""}]
[null,"Wasser, Energie, Brennstoffe",null,null,{"$f":"IF(D11=0,0,ROUND(D11/Tage/'1-Grunddaten'!$F$54,2))","v":0},""]
[null,"Wirtschaftsbedarf",null,null,{"$f":"IF(D12=0,0,ROUND(D12/Tage/'1-Grunddaten'!$F$54,2))","v":0},""]
[null,"Kfz-Kosten  ",null,null,{"$f":"IF(D13=0,0,ROUND(D13/Tage/'1-Grunddaten'!$F$54,2))","v":0},""]
[null,"Betreuungsbedarf (einschl. Ferienmaßnahmen)",null,null,{"$f":"IF(D14=0,0,ROUND(D14/Tage/'1-Grunddaten'!$F$54,2))","v":0},""]
[null,"Familienheimfahrten",null,null,{"$f":"IF(D15=0,0,ROUND(D15/Tage/'1-Grunddaten'!$F$54,2))","v":0},""]
[null,"Verwaltungsbedarf \n(incl. EDV-,Jahresabschl.- u. Verbandsb.kosten)",null,null,{"$f":"IF(D16=0,0,ROUND(D16/Tage/'1-Grunddaten'!$F$54,2))","v":0},""]
[]
[null,"Korrekturposten + / - (zur Anpassung an den Sachkostenanhaltswert)",null,null,null,""]
[null,null,"Summe:",{"$f":"SUM(D9:D16)","v":0},{"$f":"SUM(E9:E16)","v":0},{"$f":"SUM(F9:F18)","v":0},{"$f":"SUM(G9:G18)","v":0},null,"Ergebnis"]
[]
[null,null,null,null,"Summe Sachkostenanhaltswert (nachrichtlich):",{"$f":"PlatzGesamt*Tage*G21","v":0},19.489999999999998,null,{"$f":"'6-Ergebnis'!B65","v":""},{"$f":"'6-Ergebnis'!I65","v":""}]
[null,null,null,null,"Über-/Unterschreitung des  Sachkostenanhaltswertes (nachrichtlich):",{"$f":"PlatzGesamt*Tage*G22","v":0},{"$f":"G19-G21","v":-19.489999999999998}]
[null,null,null,null,null,null,null,null,{"$f":"'6-Ergebnis'!B66","v":""},{"$f":"'6-Ergebnis'!I66","v":""}]
[null,"investive Folgekosten / fixer Sachaufwand",null,null,null,null,null,null,{"$f":"'6-Ergebnis'!B67","v":""},{"$f":"'6-Ergebnis'!I67","v":""}]
[null,null,null,"laufender \nWirtschaftszeitraum \n- hochgerechnet -",null,"Kalkulationszeitraum",null,null,{"$f":"'6-Ergebnis'!B68","v":""},{"$f":"'6-Ergebnis'!I68","v":""}]
[null,"Aufwandsarten",null,"betriebsbezogender Aufwand",null,"betriebsbezogender Aufwand",null,null,{"$f":"'6-Ergebnis'!B69","v":""},{"$f":"'6-Ergebnis'!I69","v":""}]
[null,"Sachaufwand 1):",null,"pro Jahr","pro Kalendertag","pro Jahr","pro Kalendertag",null,{"$f":"'6-Ergebnis'!B70","v":""},{"$f":"'6-Ergebnis'!I70","v":""}]
[null,"Investitionsaufwendungen 2)",null,{"$f":"'4-Invest.kosten'!D44","v":0},{"$f":"IF(D28=0,\"\",D28/'1-Grunddaten'!$F$54/Tage)","v":""},{"$f":"'4-Invest.kosten'!F44","v":0},{"$f":"IF(F28=0,\"\",F28/PlatzGesamt/Tage)","v":""},null,{"$f":"'6-Ergebnis'!B71","v":""},{"$f":"'6-Ergebnis'!I71","v":""}]
[null,"Steuern und Abgaben",null,null,{"$f":"IF(D29=0,\"\",D29/'1-Grunddaten'!$F$54/Tage)","v":""},null,{"$f":"IF(F29=0,\"\",F29/PlatzGesamt/Tage)","v":""},null,{"$f":"'6-Ergebnis'!B72","v":""},{"$f":"'6-Ergebnis'!I72","v":""}]
[null,"Versicherungen",null,null,{"$f":"IF(D30=0,\"\",D30/'1-Grunddaten'!$F$54/Tage)","v":""},null,{"$f":"IF(F30=0,\"\",F30/PlatzGesamt/Tage)","v":""},null,{"$f":"'6-Ergebnis'!B73","v":""},{"$f":"'6-Ergebnis'!I73","v":""}]
[null,"Anteil Wartung 3)\n(z.B. Heizungsanlagen, Aufzüge, Brandschutz)",null,null,{"$f":"IF(D31=0,\"\",D31/'1-Grunddaten'!$F$54/Tage)","v":""},null,{"$f":"IF(F31=0,\"\",F31/PlatzGesamt/Tage)","v":""},null,{"$f":"'6-Ergebnis'!B74","v":""},{"$f":"'6-Ergebnis'!I74","v":""}]
[null,null,"Summe:",{"$f":"SUM(D24:D31)","v":0},{"$f":"IF(SUM(E28:E31)=0,\"\",SUM(E28:E31))","v":""},{"$f":"SUM(F28:F31)","v":0},{"$f":"IF(SUM(G28:G31)=0,\"\",SUM(G28:G31))","v":""},null,{"$f":"'6-Ergebnis'!B75","v":""},{"$f":"'6-Ergebnis'!I75","v":""}]
[]
[null,"1) = Korrespondierende Erlöse sind von den jeweiligen Aufwendungen abzusetzen!",null,null,null,null,null,null,{"$f":"'6-Ergebnis'!B76","v":""},{"$f":"'6-Ergebnis'!I76","v":""}]
[null,"2) = Differenzierung gem. vorheriger Seite \"Invest.kosten\""]
[null,"3) = soweit nicht bereits in den Investitionskosten enthalten"]

{"sheet":"6-Ergebnis","index":6,"n_rows":101,"n_cols":24,"rows_kept":101,"cut":false,"hidden":false,"merged":[[24,1,25,2],[36,1,37,2],[32,1,33,2],[66,1,66,2],[34,1,35,2],[30,1,31,2],[38,1,39,2],[64,1,64,2],[65,1,65,2],[40,1,41,2],[42,1,43,2],[44,1,45,2],[46,1,47,2],[83,9,83,15],[83,1,83,6],[28,1,29,2],[26,1,27,2],[70,1,70,2],[71,1,71,2],[75,1,75,2],[68,1,68,2],[69,1,69,2],[67,1,67,2],[72,1,72,2],[73,1,73,2],[74,1,74,2]]}
[]
[null,"Entgeltberechnung"]
[]
[null,"In der Einrichtung vorhandene Angebote:"]
[]
[null,"Angebot Nr.","Platzzahl",null,"Pädag. Pers.","Betreuungs-intensität",null,null,"Einordnung nach Allg. Leistungsbeschreibung"]
[null,1,{"$f":"'2-Stellenplan'!J8","v":0},null,{"$f":"'2-Stellenplan'!J10","v":0},1,{"$f":"+'2-Stellenplan'!J9","v":0},null,{"$f":"IF(G7=0,\"\",IF(G7>2.13,$X$11,IF(G7<1.7,$X$9,$X$10)))","v":""}]
[null,{"$f":"IF(C8>0,B7+1,\"\")","v":""},{"$f":"'2-Stellenplan'!K8","v":0},null,{"$f":"'2-Stellenplan'!K10","v":0},1,{"$f":"'2-Stellenplan'!K9","v":0},null,""]
[null,{"$f":"IF(C9>0,B8+1,\"\")","v":""},{"$f":"'2-Stellenplan'!L8","v":0},null,{"$f":"'2-Stellenplan'!L10","v":0},1,{"$f":"'2-Stellenplan'!L9","v":0},null,"",null,null,null,null,null,null,null,null,null,null,null,null,null,null,"Intensivangebot"]
[null,"",{"$f":"'2-Stellenplan'!M8","v":0},null,{"$f":"'2-Stellenplan'!M10","v":0},1,{"$f":"'2-Stellenplan'!M9","v":0},null,"",null,null,null,null,null,null,null,null,null,null,null,null,null,null,"Regelangebot"]
[null,"",{"$f":"'2-Stellenplan'!N8","v":0},null,{"$f":"'2-Stellenplan'!N10","v":0},2,{"$f":"'2-Stellenplan'!N9","v":0},null,"",null,null,null,null,null,null,null,null,null,null,null,null,null,null,"Angebot m. niedr. Betreuungsaufw."]
[null,"",{"$f":"'2-Stellenplan'!O8","v":0},null,{"$f":"'2-Stellenplan'!O10","v":0},3,{"$f":"'2-Stellenplan'!O9","v":0},null,""]
[null,"",{"$f":"'2-Stellenplan'!P8","v":0},null,{"$f":"'2-Stellenplan'!P10","v":0},4,{"$f":"'2-Stellenplan'!P9","v":0},null,""]
[null,"",{"$f":"'2-Stellenplan'!Q8","v":0},null,{"$f":"'2-Stellenplan'!Q10","v":0},5,{"$f":"'2-Stellenplan'!Q9","v":0},null,""]
[null,{"$f":"IF(C15>0,B14+1,\"\")","v":""},{"$f":"'2-Stellenplan'!R8","v":0},null,{"$f":"'2-Stellenplan'!R10","v":0},6,{"$f":"'2-Stellenplan'!R9","v":0},null,""]
[null,{"$f":"IF(C16>0,B15+1,\"\")","v":""},{"$f":"'2-Stellenplan'!S8","v":0},null,{"$f":"'2-Stellenplan'!S10","v":0},7,{"$f":"'2-Stellenplan'!S9","v":0},null,""]
[null,{"$f":"IF(C17>0,B16+1,\"\")","v":""},{"$f":"'2-Stellenplan'!T8","v":0},null,{"$f":"'2-Stellenplan'!T10","v":0},8,{"$f":"'2-Stellenplan'!T9","v":0},null,""]
[null,{"$f":"IF(C18>0,B17+1,\"\")","v":""},{"$f":"'2-Stellenplan'!U8","v":0},null,{"$f":"'2-Stellenplan'!U10","v":0},9,{"$f":"'2-Stellenplan'!U9","v":0},null,""]
[]
[]
[null,"Berechnung des pädagogischen Entgeltanteils"]
[]
[null,"Schema",null,null,"Pers.Kost. je Vollkraft im päd. Dienst ",null,null,"x","päd. Personal in der jeweiligen Angebotsform"]
[null,null,null,null,"Berechnungsstage in der jeweiligen Angebotsform"]
[null,{"$f":"I7","v":""},null,null,{"$f":"IF('2-Stellenplan'!J8=0,0,'3-Perso.aufw.'!$I$5)","v":0},"x",{"$f":"'2-Stellenplan'!J10","v":0},"=",{"$f":"IF(ISERROR(E25*G25/E26),\"\",ROUND(E25*G25/E26,2))","v":""},null,{"$f":"IF(I25=\"\",\"wird nicht angeboten!\",\"\")","v":"wird nicht angeboten!"}]
[null,null,null,null,{"$f":"IF('2-Stellenplan'!J8=0,0,ROUND(BTGesamt/PlatzGesamt*'2-Stellenplan'!J8,0))","v":0}]
[null,{"$f":"I8","v":""},null,null,{"$f":"IF('2-Stellenplan'!K8=0,0,'3-Perso.aufw.'!$I$5)","v":0},"x",{"$f":"'2-Stellenplan'!K10","v":0},"=",{"$f":"IF(ISERROR(E27*G27/E28),\"\",ROUND(E27*G27/E28,2))","v":""},null,{"$f":"IF(I27=\"\",\"wird nicht angeboten!\",\"\")","v":"wird nicht angeboten!"}]
[null,null,null,null,{"$f":"IF('2-Stellenplan'!K8=0,0,ROUND(BTGesamt/PlatzGesamt*'2-Stellenplan'!K8,0))","v":0}]
[null,{"$f":"I9","v":""},null,null,{"$f":"IF('2-Stellenplan'!L8=0,0,'3-Perso.aufw.'!$I$5)","v":0},"x",{"$f":"'2-Stellenplan'!L10","v":0},"=",{"$f":"IF(ISERROR(E29*G29/E30),\"\",ROUND(E29*G29/E30,2))","v":""},null,{"$f":"IF(I29=\"\",\"wird nicht angeboten!\",\"\")","v":"wird nicht angeboten!"}]
[null,null,null,null,{"$f":"IF('2-Stellenplan'!L8=0,0,ROUND(BTGesamt/PlatzGesamt*'2-Stellenplan'!L8,0))","v":0}]
[null,{"$f":"I10","v":""},null,null,{"$f":"IF('2-Stellenplan'!M8=0,0,'3-Perso.aufw.'!$I$5)","v":0},"x",{"$f":"'2-Stellenplan'!M10","v":0},"=",{"$f":"IF(ISERROR(E31*G31/E32),\"\",ROUND(E31*G31/E32,2))","v":""},null,{"$f":"IF(I31=\"\",\"wird nicht angeboten!\",\"\")","v":"wird nicht angeboten!"}]
[null,null,null,null,{"$f":"IF('2-Stellenplan'!M8=0,0,ROUND(BTGesamt/PlatzGesamt*'2-Stellenplan'!M8,0))","v":0}]
[null,{"$f":"I11","v":""},null,null,{"$f":"IF('2-Stellenplan'!N8=0,0,'3-Perso.aufw.'!$I$5)","v":0},"x",{"$f":"'2-Stellenplan'!N10","v":0},"=",{"$f":"IF(ISERROR(E33*G33/E34),\"\",ROUND(E33*G33/E34,2))","v":""},null,{"$f":"IF(I33=\"\",\"wird nicht angeboten!\",\"\")","v":"wird nicht angeboten!"}]
[null,null,null,null,{"$f":"IF('2-Stellenplan'!N8=0,0,ROUND(BTGesamt/PlatzGesamt*'2-Stellenplan'!N8,0))","v":0}]
[null,{"$f":"I12","v":""},null,null,{"$f":"IF('2-Stellenplan'!O8=0,0,'3-Perso.aufw.'!$I$5)","v":0},"x",{"$f":"'2-Stellenplan'!O10","v":0},"=",{"$f":"IF(ISERROR(E35*G35/E36),\"\",ROUND(E35*G35/E36,2))","v":""},null,{"$f":"IF(I35=\"\",\"wird nicht angeboten!\",\"\")","v":"wird nicht angeboten!"}]
[null,null,null,null,{"$f":"IF('2-Stellenplan'!O8=0,0,ROUND(BTGesamt/PlatzGesamt*'2-Stellenplan'!O8,0))","v":0}]
[null,{"$f":"I13","v":""},null,null,{"$f":"IF('2-Stellenplan'!P8=0,0,'3-Perso.aufw.'!$I$5)","v":0},"x",{"$f":"'2-Stellenplan'!P10","v":0},"=",{"$f":"IF(ISERROR(E37*G37/E38),\"\",ROUND(E37*G37/E38,2))","v":""},null,{"$f":"IF(I37=\"\",\"wird nicht angeboten!\",\"\")","v":"wird nicht angeboten!"}]
[null,null,null,null,{"$f":"IF('2-Stellenplan'!P8=0,0,ROUND(BTGesamt/PlatzGesamt*'2-Stellenplan'!P8,0))","v":0}]
[null,{"$f":"I14","v":""},null,null,{"$f":"IF('2-Stellenplan'!Q8=0,0,'3-Perso.aufw.'!$I$5)","v":0},"x",{"$f":"'2-Stellenplan'!Q10","v":0},"=",{"$f":"IF(ISERROR(E39*G39/E40),\"\",ROUND(E39*G39/E40,2))","v":""},null,{"$f":"IF(I39=\"\",\"wird nicht angeboten!\",\"\")","v":"wird nicht angeboten!"}]
[null,null,null,null,{"$f":"IF('2-Stellenplan'!Q8=0,0,ROUND(BTGesamt/PlatzGesamt*'2-Stellenplan'!Q8,0))","v":0}]
[null,{"$f":"I15","v":""},null,null,{"$f":"IF('2-Stellenplan'!R8=0,0,'3-Perso.aufw.'!$I$5)","v":0},"x",{"$f":"'2-Stellenplan'!R10","v":0},"=",{"$f":"IF(ISERROR(E41*G41/E42),\"\",ROUND(E41*G41/E42,2))","v":""},null,{"$f":"IF(I41=\"\",\"wird nicht angeboten!\",\"\")","v":"wird nicht angeboten!"}]
[null,null,null,null,{"$f":"IF('2-Stellenplan'!R8=0,0,ROUND(BTGesamt/PlatzGesamt*'2-Stellenplan'!R8,0))","v":0}]
[null,{"$f":"I16","v":""},null,null,{"$f":"IF('2-Stellenplan'!S8=0,0,'3-Perso.aufw.'!$I$5)","v":0},"x",{"$f":"'2-Stellenplan'!S10","v":0},"=",{"$f":"IF(ISERROR(E43*G43/E44),\"\",ROUND(E43*G43/E44,2))","v":""},null,{"$f":"IF(I43=\"\",\"wird nicht angeboten!\",\"\")","v":"wird nicht angeboten!"}]
[null,null,null,null,{"$f":"IF('2-Stellenplan'!S8=0,0,ROUND(BTGesamt/PlatzGesamt*'2-Stellenplan'!S8,0))","v":0}]
[null,{"$f":"I17","v":""},null,null,{"$f":"IF('2-Stellenplan'!T8=0,0,'3-Perso.aufw.'!$I$5)","v":0},"x",{"$f":"'2-Stellenplan'!T10","v":0},"=",{"$f":"IF(ISERROR(E45*G45/E46),\"\",ROUND(E45*G45/E46,2))","v":""},null,{"$f":"IF(I45=\"\",\"wird nicht angeboten!\",\"\")","v":"wird nicht angeboten!"}]
[null,null,null,null,{"$f":"IF('2-Stellenplan'!T8=0,0,ROUND(BTGesamt/PlatzGesamt*'2-Stellenplan'!T8,0))","v":0}]
[null,{"$f":"I18","v":""},null,null,{"$f":"IF('2-Stellenplan'!U8=0,0,'3-Perso.aufw.'!$I$5)","v":0},"x",{"$f":"'2-Stellenplan'!U10","v":0},"=",{"$f":"IF(ISERROR(E47*G47/E48),\"\",ROUND(E47*G47/E48,2))","v":""},null,{"$f":"IF(I47=\"\",\"wird nicht angeboten!\",\"\")","v":"wird nicht angeboten!"}]
[null,null,null,null,{"$f":"IF('2-Stellenplan'!U8=0,0,ROUND(BTGesamt/PlatzGesamt*'2-Stellenplan'!U8,0))","v":0}]
[null,null,null,null,"Berechungstage insgesamt:",null,null,null,{"$f":"E26+E28+E30+E32+E34+E36+E38+E40+E42+E44+E46+E48","v":0}]
[]
[]
[]
[]
[null,"Ermittlung des Basis-Entgeltsatzes:"]
[null,null,null,null,null,null,null,null,null,null,"Kosten in € absolut",null,"Kosten pro Berechnungstag"]
[null,"  Personalkosten  (ohne päd. Personal)",null,null,null,null,null,null,null,"(Übertrag aus Seite \"Perso.Aufw.)",{"$f":"'3-Perso.aufw.'!H6+'3-Perso.aufw.'!H7+'3-Perso.aufw.'!H8+'3-Perso.aufw.'!H9+'3-Perso.aufw.'!H11+'3-Perso.aufw.'!H10","v":0},null,{"$f":"IF(K56=0,,ROUND(K56/I59,2))","v":0}]
[null,"  Sachaufwand",null,null,null,null,null,null,null,"(Übertrag aus Seite \"Sachwaufwand\")",{"$f":"'5-Sachaufwand'!F19","v":0},null,{"$f":"IF(K57=0,0,ROUND(K57/I59,2))","v":0}]
[null,"  Investive Folgekosten / Fixer Sachaufwand",null,null,null,null,null,null,null,"(Übertrag aus Seite\"Sachaufwand\")",{"$f":"'5-Sachaufwand'!F32","v":0},null,{"$f":"IF(K58=0,0,ROUND(K58/I59,2))","v":0}]
[null,null,null,null,"Zwischensumme Kosten",null,null,"bei",{"$f":"BTGesamt","v":""},"Tagen",{"$f":"SUM(K56:K58)","v":0},null,{"$f":"SUM(M56:M58)","v":0}]
[null,"./. Erlöse aus Fachleistungsstunden",null,null,null,null,null,null,"(Übertrag aus Seite ...)",null,{"$f":"'3-Perso.aufw.'!H14","v":0},null,{"$f":"IF(K60=0,0,ROUND(K60/I61,2))","v":0}]
[null,"Gesamt",null,null,null,null,null,{"$f":"H59","v":"bei"},{"$f":"BTGesamt","v":""},"Tagen",{"$f":"K59-K60","v":0},null,{"$f":"M59-M60","v":0},{"$f":"N59-N60","v":0}]
[]
[null,"Ermittlung der differenzierten Entgeltsätze:"]
[null,null,null,null,"Basis-Entgeltsatz\nin Euro","+","Zuschlag pädagog. Personal",null,"differenzierter Entgeltsatz",null,null,null,null,"anteilige Erlöse"]
[null,{"$f":"I7","v":""},null,null,{"$f":"IF('2-Stellenplan'!J8=0,\"\",$M$61)","v":""},"+",{"$f":"I25","v":""}," =",{"$f":"IF(ISERROR(E65+G65),\"\",E65+G65)","v":""},"( x",{"$f":"E26","v":0},null,"Tage    =    €",{"$f":"IF(K65=0,0,I65*K65)","v":0},")"]
[null,"",null,null,{"$f":"IF('2-Stellenplan'!K8=0,\"\",$M$61)","v":""},"+",{"$f":"I27","v":""}," =","","( x",{"$f":"E28","v":0},null,"Tage    =    €",0,")"]
[null,"",null,null,{"$f":"IF('2-Stellenplan'!L8=0,\"\",$M$61)","v":""},"+",{"$f":"I29","v":""}," =","","( x",{"$f":"E30","v":0},null,"Tage    =    €",0,")"]
[null,"",null,null,{"$f":"IF('2-Stellenplan'!M8=0,\"\",$M$61)","v":""},"+",{"$f":"I31","v":""}," =","","( x",{"$f":"E32","v":0},null,"Tage    =    €",0,")"]
[null,"",null,null,{"$f":"IF('2-Stellenplan'!N8=0,\"\",$M$61)","v":""},"+",{"$f":"I33","v":""}," =","","( x",{"$f":"E34","v":0},null,"Tage    =    €",0,")"]
[null,"",null,null,{"$f":"IF('2-Stellenplan'!O8=0,\"\",$M$61)","v":""},"+",{"$f":"I35","v":""}," =","","( x",{"$f":"E36","v":0},null,"Tage    =    €",0,")"]
[null,"",null,null,{"$f":"IF('2-Stellenplan'!P8=0,\"\",$M$61)","v":""},"+",{"$f":"I37","v":""}," =","","( x",{"$f":"E38","v":0},null,"Tage    =    €",0,")"]
[null,"",null,null,{"$f":"IF('2-Stellenplan'!Q8=0,\"\",$M$61)","v":""},"+",{"$f":"I39","v":""}," =","","( x",{"$f":"E40","v":0},null,"Tage    =    €",0,")"]
[null,"",null,null,{"$f":"IF('2-Stellenplan'!R8=0,\"\",$M$61)","v":""},"+",{"$f":"I41","v":""}," =",{"$f":"IF(ISERROR(E73+G73),\"\",E73+G73)","v":""},"( x",{"$f":"E42","v":0},null,"Tage    =    €",{"$f":"IF(K73=0,0,I73*K73)","v":0},")"]
[null,"",null,null,{"$f":"IF('2-Stellenplan'!S8=0,\"\",$M$61)","v":""},"+",{"$f":"I43","v":""}," =",{"$f":"IF(ISERROR(E74+G74),\"\",E74+G74)","v":""},"( x",{"$f":"E44","v":0},null,"Tage    =    €",{"$f":"IF(K74=0,0,I74*K74)","v":0},")"]
[null,"",null,null,{"$f":"IF('2-Stellenplan'!T8=0,\"\",$M$61)","v":""},"+",{"$f":"I45","v":""}," =",{"$f":"IF(ISERROR(E75+G75),\"\",E75+G75)","v":""},"( x",{"$f":"E46","v":0},null,"Tage    =    €",{"$f":"IF(K75=0,0,I75*K75)","v":0},")"]
[null,"",null,null,{"$f":"IF('2-Stellenplan'!U8=0,\"\",$M$61)","v":""},"+",{"$f":"I47","v":""}," =","","( x",{"$f":"E48","v":0},null,"Tage    =    €",0,")"]
[null,"Gesamt",null,null,null,null,null,null,null,null,{"$f":"SUM(K65:K76)","v":0},null," Tage   =    €",{"$f":"SUM(N65:N76)","v":0}]
[]
[null,"Anlagen:","q",null,"Entwurf der",null,null,"q","Entwurf der "]
[null,null,null,null,"Leistungsvereinbarung ",null,null,null,"Qualitätsentwicklungsvereinbarung"]
[]
[null,"Für die Richtigkeit:",null,null,null,null,null,null,null,"Geprüft:"]
[]
[]
[null,"Datum, Stempel und Unterschrift der Einrichtung",null,null,null,null,null,null,null,"Datum, Stempel und Unterschrift des Spitzen-/ Träger- "]
[null,null,null,null,null,null,null,null,null,"bzw. Interessenverbandes"]
[]
[]
[null,"Versand der Kalkulationsunterlagen an:"]
[]
[null,"örtlicher Träger der öffentlichen Jugendhilfe",null,null,null,null,null,"Stadt / Kreis  ",null,{"$f":"'1-Grunddaten'!M9","v":0}]
[null,null,null,null,null,null,null,null,null,"Ansprechpartner:"]
[null,null,null,null,null,null,null,null,null,"e-mail:"]
[null,null,null,null,null,null,null,null,null,"Tel."]
[]
[null,"hauptbelegender Träger der öfftenlichen Jugendhilfe:",null,null,null,null,null,"Stadt / Kreis ",null,{"$f":"'1-Grunddaten'!M14","v":0}]
[null,null,null,null,null,null,null,null,null,"Ansprechpartner:"]
[null,null,null,null,null,null,null,null,null,"e-mail:"]
[null,null,null,null,null,null,null,null,null,"Tel."]
[]
[null,"Entgeltstelle Jugendhilfe des Landschaftsverbandes",null,null,null,null,null,"Landschaftsverband"]

{"sheet":"7-Niederschrift","index":7,"n_rows":84,"n_cols":8,"rows_kept":84,"cut":false,"hidden":false,"merged":[[1,1,1,7],[2,1,2,7],[62,2,62,7],[66,2,66,7],[20,5,20,7],[63,2,63,7],[64,2,64,7],[65,2,65,7],[54,2,54,5],[55,2,55,5],[61,2,61,7],[56,2,56,5],[57,2,57,5],[59,2,59,7],[60,2,60,7]]}
[]
[null,"Vereinbarungsniederschrift über Leistungen, Qualitätsentwicklung und Leistungsentgelte "]
[null,"nach § 78c SGB VIII"]
[]
[null,"1. Der öffentliche Jugendhilfeträger ",null,null,null,{"$f":"IF('1-Grunddaten'!M9=0,\"\",'1-Grunddaten'!M9)","v":""}]
[null,"Stadt / Kreis",null,null,null,{"$f":"IF('1-Grunddaten'!M10=0,\"\",'1-Grunddaten'!M10)","v":""}]
[null,null,null,null,null,{"$f":"IF('1-Grunddaten'!M11=0,\"\",'1-Grunddaten'!M11)","v":""}]
[]
[null,"und der Einrichtungsträger",null,null,null,{"$f":"IF('1-Grunddaten'!D17=0,\"\",'1-Grunddaten'!D17)","v":""}]
[null,null,null,null,null,{"$f":"IF('1-Grunddaten'!D18=0,\"\",'1-Grunddaten'!D18)","v":""}]
[null,null,null,null,null,{"$f":"IF('1-Grunddaten'!D19=0,\"\",'1-Grunddaten'!D19)","v":""}]
[null,null,null,null,null,{"$f":"IF('1-Grunddaten'!D20=0,\"\",'1-Grunddaten'!D20)","v":""}]
[null,null,null,null,null,{"$f":"IF('1-Grunddaten'!D21=0,\"\",'1-Grunddaten'!D21)","v":""}]
[]
[null,"schließen für die nachstehend genannte ",null,null,null,{"$f":"IF('1-Grunddaten'!D9=0,\"\",'1-Grunddaten'!D9)","v":""}]
[null,"Einrichtung",null,null,null,{"$f":"IF('1-Grunddaten'!D10=0,\"\",'1-Grunddaten'!D10)","v":""}]
[null,null,null,null,null,{"$f":"IF('1-Grunddaten'!D11=0,\"\",'1-Grunddaten'!D11)","v":""}]
[null,null,null,null,null,{"$f":"IF('1-Grunddaten'!D12=0,\"\",'1-Grunddaten'!D12)","v":""}]
[null,null,null,null,null,{"$f":"IF('1-Grunddaten'!D13=0,\"\",'1-Grunddaten'!D13)","v":""}]
[]
[null,"Az. Betriebserlaubnis:"]
[]
[null,"auf der Grundlage des § 78c SGB VIII "]
[]
[null,"x","eine Leistungsvereinbarung (Anlage 1), "]
[null,null,"eine Qualitätsentwicklungsvereinbarung (Anlage 2) und "]
[null,null,"eine Leistungsentgeltvereinbarung (Anlage 3)"]
[null,"ab."]
[]
[null,"2. Die Vereinbarungen gelten für den Zeitraum "]
[null,null,"(unter Berücksichtigung des § 78 d SGB VIII, im Regelfall 12 Monate)"]
[]
[null,null,"vom:",null,{"$f":"'1-Grunddaten'!$K$61","v":"00:00:00"},null,"bis zum: ",{"$f":"'1-Grunddaten'!$M$61","v":"00:00:00"}]
[]
[]
[null,"3. Die differenzierten Leistungsentgelte betragen pro Betreuungstag:"]
[]
[null,null,"Angebotsform","Platz-\nzahl","Päd. Schlüssel Erziehungsdienst","Basisentgelt","Zuschlag päd. Personal","Entgelt je Tag"]
[null,null,{"$f":"'6-Ergebnis'!B65","v":""},{"$f":"'6-Ergebnis'!C7","v":0},{"$f":"IF('2-Stellenplan'!$J$9=0,\"\",'2-Stellenplan'!$J$9)","v":""},{"$f":"'6-Ergebnis'!E65","v":""},{"$f":"'6-Ergebnis'!G65","v":""},{"$f":"'6-Ergebnis'!I65","v":""}]
[null,null,{"$f":"'6-Ergebnis'!B66","v":""},{"$f":"'6-Ergebnis'!C8","v":0},{"$f":"IF('2-Stellenplan'!$K$9=0,\"\",'2-Stellenplan'!$K$9)","v":""},{"$f":"'6-Ergebnis'!E66","v":""},{"$f":"'6-Ergebnis'!G66","v":""},{"$f":"'6-Ergebnis'!I66","v":""}]
[null,null,{"$f":"'6-Ergebnis'!B67","v":""},{"$f":"'6-Ergebnis'!C9","v":0},{"$f":"IF('2-Stellenplan'!$L$9=0,\"\",'2-Stellenplan'!$L$9)","v":""},{"$f":"'6-Ergebnis'!E67","v":""},{"$f":"'6-Ergebnis'!G67","v":""},{"$f":"'6-Ergebnis'!I67","v":""}]
[null,null,{"$f":"'6-Ergebnis'!B68","v":""},{"$f":"'6-Ergebnis'!C10","v":0},{"$f":"IF('2-Stellenplan'!$M$9=0,\"\",'2-Stellenplan'!$M$9)","v":""},{"$f":"'6-Ergebnis'!E68","v":""},{"$f":"'6-Ergebnis'!G68","v":""},{"$f":"'6-Ergebnis'!I68","v":""}]
[null,null,{"$f":"'6-Ergebnis'!B69","v":""},{"$f":"'6-Ergebnis'!C11","v":0},{"$f":"IF('2-Stellenplan'!$N$9=0,\"\",'2-Stellenplan'!$N$9)","v":""},{"$f":"'6-Ergebnis'!E69","v":""},{"$f":"'6-Ergebnis'!G69","v":""},{"$f":"'6-Ergebnis'!I69","v":""}]
[null,null,{"$f":"'6-Ergebnis'!B70","v":""},{"$f":"'6-Ergebnis'!C12","v":0},{"$f":"IF('2-Stellenplan'!$O$9=0,\"\",'2-Stellenplan'!$O$9)","v":""},{"$f":"'6-Ergebnis'!E70","v":""},{"$f":"'6-Ergebnis'!G70","v":""},{"$f":"'6-Ergebnis'!I70","v":""}]
[null,null,{"$f":"'6-Ergebnis'!B71","v":""},{"$f":"'6-Ergebnis'!C13","v":0},{"$f":"IF('2-Stellenplan'!$P$9=0,\"\",'2-Stellenplan'!$P$9)","v":""},{"$f":"'6-Ergebnis'!E71","v":""},{"$f":"'6-Ergebnis'!G71","v":""},{"$f":"'6-Ergebnis'!I71","v":""}]
[null,null,{"$f":"'6-Ergebnis'!B72","v":""},{"$f":"'6-Ergebnis'!C14","v":0},{"$f":"IF('2-Stellenplan'!$Q$9=0,\"\",'2-Stellenplan'!$Q$9)","v":""},{"$f":"'6-Ergebnis'!E72","v":""},{"$f":"'6-Ergebnis'!G72","v":""},{"$f":"'6-Ergebnis'!I72","v":""}]
[null,null,{"$f":"'6-Ergebnis'!B73","v":""},{"$f":"'6-Ergebnis'!C15","v":0},{"$f":"IF('2-Stellenplan'!$R$9=0,\"\",'2-Stellenplan'!$R$9)","v":""},{"$f":"'6-Ergebnis'!E73","v":""},{"$f":"'6-Ergebnis'!G73","v":""},{"$f":"'6-Ergebnis'!I73","v":""}]
[null,null,{"$f":"'6-Ergebnis'!B74","v":""},{"$f":"'6-Ergebnis'!C16","v":0},{"$f":"IF('2-Stellenplan'!$S$9=0,\"\",'2-Stellenplan'!$S$9)","v":""},{"$f":"'6-Ergebnis'!E74","v":""},{"$f":"'6-Ergebnis'!G74","v":""},{"$f":"'6-Ergebnis'!I74","v":""}]
[null,null,{"$f":"'6-Ergebnis'!B75","v":""},{"$f":"'6-Ergebnis'!C17","v":0},{"$f":"IF('2-Stellenplan'!$T$9=0,\"\",'2-Stellenplan'!$T$9)","v":""},{"$f":"'6-Ergebnis'!E75","v":""},{"$f":"'6-Ergebnis'!G75","v":""},{"$f":"'6-Ergebnis'!I75","v":""}]
[null,null,{"$f":"'6-Ergebnis'!B76","v":""},{"$f":"'6-Ergebnis'!C18","v":0},{"$f":"IF('2-Stellenplan'!$U$9=0,\"\",'2-Stellenplan'!$U$9)","v":""},{"$f":"'6-Ergebnis'!E76","v":""},{"$f":"'6-Ergebnis'!G76","v":""},{"$f":"'6-Ergebnis'!I76","v":""}]
[]
[]
[null,"4. Die Leistungen für sozialpädagogische Fachleistungsstunden betragen für:"]
[]
[null,null,null,null,null,null,0]
[null,null,null,null,null,null,0]
[null,null,null,null,null,null,0]
[null,null,null,null,null,null,0]
[]
[null,"5. ",{"$f":"\"Die Leistungen (Anlage 1), die Qualitätsentwicklung (Anlage 2) und die Entgelte (Anlage 3) wurden nach Anhörung des hauptbelegenden öffentlichen Jugendhilfeträgers der Stadt/des Kreises \"&'1-Grunddaten'!M14&\" vereinbart.\"","v":"Die Leistungen (Anlage 1), die Qualitätsentwicklung (Anlage 2) und die Entgelte (Anlage 3) wurden nach Anhörung des hauptbelegenden öffentlichen Jugendhilfeträgers der Stadt/des Kreises  vereinbart."}]
[null,"6. ","Die vom Einrichtungsträger vorgelegte Leistungs- und Qualitätsentwicklungsbeschreibung sowie die Kostenkalkulation beruhen auf der Grundlage des SGB VIII. Der öffentliche Jugendhilfeträger bestätigt, dass die vereinbarten Entgelte sich nachvollziehbar aus der Leistungs- und der Qualitätsentwicklungsvereinbarung ergeben."]
[null,"7. ","Der Einrichtungsträger verpflichtet sich, die vereinbarten Leistungen bedarfsgerecht im vereinbarten Umfang und in der vereinbarten Qualität zu erbringen."]
[null,"8. ","Bei unvorhersehbaren wesentlichen Änderungen der Annahmen für den laufenden Vereinbarungszeitraum, die diesen Vereinbarungen zugrunde liegen, sind die Vereinbarungen auf Verlangen einer Vereinbarungspartei neu zu verhandeln."]
[null,"9. ","Der erforderliche Qualitätsdialog zwischen den Vereinbarungspartnern erfolgt vor Ablauf des Vereinbarungszeitraums."]
[null,"10. ","Vereinbarte Leistungsentgelte können pauschal fortgeschrieben werden, wenn der öffentliche Jugendhilfeträger nicht widerspricht. "]
[null,"11. ","Der öffentliche Jugendhilfeträger sendet unverzüglich eine Durchschrift der Vereinbarungen an die Entgeltstelle Jugendhilfe des jeweiligen Landschaftsverbandes. Der Einrichtungsträger sendet unverzüglich eine Durchschrift der Vereinbarungen an das Landesjugendamt, die belegenden Jugendämter und an seinen Spitzenverband."]
[null,"12. ","Die Daten dieser Vereinbarung werden in die interne Datenbank \"Infokatalog-Jugendhilfe\" aufge- nommen"]
[]
[]
[null,"Ort / Datum"]
[]
[]
[]
[]
[null,"Stadt/Kreis Einrichtungsträger",null,null,"Stempel/Unterschrif"]
[]
[]
[]
[]
[null,"Einrichtungsträger",null,null,"Stempel/Unterschrif"]
[]
[null,null,"Anlagen: ",{"$f":"IF(B25=0,\"\",B25)","v":"x"},"1. Vereinbarte Leistungen"]
[null,null,null,{"$f":"IF(B26=0,\"\",B26)","v":""},"2. Vereinbarte Qualitätsentwicklung"]
[null,null,null,{"$f":"IF(B27=0,\"\",B27)","v":""},"3. Vereinbarte Leistungsentgelte"]

{"sheet":"8-Niederschrift (frei)","index":8,"n_rows":84,"n_cols":8,"rows_kept":84,"cut":false,"hidden":false,"merged":[[1,1,1,7],[2,1,2,7],[62,2,62,7],[66,2,66,7],[20,5,20,7],[63,2,63,7],[64,2,64,7],[65,2,65,7],[54,2,54,5],[55,2,55,5],[61,2,61,7],[56,2,56,5],[57,2,57,5],[59,2,59,7],[60,2,60,7]]}
[]
[null,"Vereinbarungsniederschrift über Leistungen, Qualitätsentwicklung und Leistungsentgelte "]
[null,"nach § 78c SGB VIII "]
[]
[null,"1. Der öffentliche Jugendhilfeträger ",null,null,null,{"$f":"IF('1-Grunddaten'!M9=0,\"\",'1-Grunddaten'!M9)","v":""}]
[null,"Stadt / Kreis",null,null,null,{"$f":"IF('1-Grunddaten'!M10=0,\"\",'1-Grunddaten'!M10)","v":""}]
[null,null,null,null,null,{"$f":"IF('1-Grunddaten'!M11=0,\"\",'1-Grunddaten'!M11)","v":""}]
[]
[null,"und der Einrichtungsträger",null,null,null,{"$f":"IF('1-Grunddaten'!D17=0,\"\",'1-Grunddaten'!D17)","v":""}]
[null,null,null,null,null,{"$f":"IF('1-Grunddaten'!D18=0,\"\",'1-Grunddaten'!D18)","v":""}]
[null,null,null,null,null,{"$f":"IF('1-Grunddaten'!D19=0,\"\",'1-Grunddaten'!D19)","v":""}]
[null,null,null,null,null,{"$f":"IF('1-Grunddaten'!D20=0,\"\",'1-Grunddaten'!D20)","v":""}]
[null,null,null,null,null,{"$f":"IF('1-Grunddaten'!D21=0,\"\",'1-Grunddaten'!D21)","v":""}]
[]
[null,"schließen für die nachstehend genannte ",null,null,null,{"$f":"IF('1-Grunddaten'!D9=0,\"\",'1-Grunddaten'!D9)","v":""}]
[null,"Einrichtung",null,null,null,{"$f":"IF('1-Grunddaten'!D10=0,\"\",'1-Grunddaten'!D10)","v":""}]
[null,null,null,null,null,{"$f":"IF('1-Grunddaten'!D11=0,\"\",'1-Grunddaten'!D11)","v":""}]
[null,null,null,null,null,{"$f":"IF('1-Grunddaten'!D12=0,\"\",'1-Grunddaten'!D12)","v":""}]
[null,null,null,null,null,{"$f":"IF('1-Grunddaten'!D13=0,\"\",'1-Grunddaten'!D13)","v":""}]
[]
[null,"Az. Betriebserlaubnis:"]
[]
[null,"auf der Grundlage des § 78c SGB VIII"]
[]
[null,null,"eine Leistungsvereinbarung (Anlage 1), "]
[null,null,"eine Qualitätsentwicklungsvereinbarung (Anlage 2) und "]
[null,null,"eine Leistungsentgeltvereinbarung (Anlage 3)"]
[null,"ab."]
[]
[null,"2. Die Vereinbarungen gelten für den Zeitraum "]
[null,null,"(unter Berücksichtigung des § 78 d 5GB VIII, im Regelfall12 Monate)"]
[]
[null,null,"vom:",null,{"$f":"'1-Grunddaten'!$K$61","v":"00:00:00"},null,"bis zum: ",{"$f":"'1-Grunddaten'!$M$61","v":"00:00:00"}]
[]
[]
[null,"3. Die differenzierten Leistungsentgelte betragen pro Betreuungstag:"]
[]
[null,null,"Angebotsform","Platz-\nzahl","Päd. Schlüssel Erziehungsdienst","Basisentgelt","Zuschlag päd. Personal","Entgelt je Tag"]
[null,null,{"$f":"'6-Ergebnis'!B65","v":""},{"$f":"'6-Ergebnis'!C7","v":0},{"$f":"IF('2-Stellenplan'!$J$9=0,\"\",'2-Stellenplan'!$J$9)","v":""},{"$f":"'6-Ergebnis'!E65","v":""},{"$f":"'6-Ergebnis'!G65","v":""},{"$f":"'6-Ergebnis'!I65","v":""}]
[null,null,{"$f":"'6-Ergebnis'!B66","v":""},{"$f":"'6-Ergebnis'!C8","v":0},{"$f":"IF('2-Stellenplan'!$K$9=0,\"\",'2-Stellenplan'!$K$9)","v":""},{"$f":"'6-Ergebnis'!E66","v":""},{"$f":"'6-Ergebnis'!G66","v":""},{"$f":"'6-Ergebnis'!I66","v":""}]
[null,null,{"$f":"'6-Ergebnis'!B67","v":""},{"$f":"'6-Ergebnis'!C9","v":0},{"$f":"IF('2-Stellenplan'!$L$9=0,\"\",'2-Stellenplan'!$L$9)","v":""},{"$f":"'6-Ergebnis'!E67","v":""},{"$f":"'6-Ergebnis'!G67","v":""},{"$f":"'6-Ergebnis'!I67","v":""}]
[null,null,{"$f":"'6-Ergebnis'!B68","v":""},{"$f":"'6-Ergebnis'!C10","v":0},{"$f":"IF('2-Stellenplan'!$M$9=0,\"\",'2-Stellenplan'!$M$9)","v":""},{"$f":"'6-Ergebnis'!E68","v":""},{"$f":"'6-Ergebnis'!G68","v":""},{"$f":"'6-Ergebnis'!I68","v":""}]
[null,null,{"$f":"'6-Ergebnis'!B69","v":""},{"$f":"'6-Ergebnis'!C11","v":0},{"$f":"IF('2-Stellenplan'!$N$9=0,\"\",'2-Stellenplan'!$N$9)","v":""},{"$f":"'6-Ergebnis'!E69","v":""},{"$f":"'6-Ergebnis'!G69","v":""},{"$f":"'6-Ergebnis'!I69","v":""}]
[null,null,{"$f":"'6-Ergebnis'!B70","v":""},{"$f":"'6-Ergebnis'!C12","v":0},{"$f":"IF('2-Stellenplan'!$O$9=0,\"\",'2-Stellenplan'!$O$9)","v":""},{"$f":"'6-Ergebnis'!E70","v":""},{"$f":"'6-Ergebnis'!G70","v":""},{"$f":"'6-Ergebnis'!I70","v":""}]
[null,null,{"$f":"'6-Ergebnis'!B71","v":""},{"$f":"'6-Ergebnis'!C13","v":0},{"$f":"IF('2-Stellenplan'!$P$9=0,\"\",'2-Stellenplan'!$P$9)","v":""},{"$f":"'6-Ergebnis'!E71","v":""},{"$f":"'6-Ergebnis'!G71","v":""},{"$f":"'6-Ergebnis'!I71","v":""}]
[null,null,{"$f":"'6-Ergebnis'!B72","v":""},{"$f":"'6-Ergebnis'!C14","v":0},{"$f":"IF('2-Stellenplan'!$Q$9=0,\"\",'2-Stellenplan'!$Q$9)","v":""},{"$f":"'6-Ergebnis'!E72","v":""},{"$f":"'6-Ergebnis'!G72","v":""},{"$f":"'6-Ergebnis'!I72","v":""}]
[null,null,{"$f":"'6-Ergebnis'!B73","v":""},{"$f":"'6-Ergebnis'!C15","v":0},{"$f":"IF('2-Stellenplan'!$R$9=0,\"\",'2-Stellenplan'!$R$9)","v":""},{"$f":"'6-Ergebnis'!E73","v":""},{"$f":"'6-Ergebnis'!G73","v":""},{"$f":"'6-Ergebnis'!I73","v":""}]
[null,null,{"$f":"'6-Ergebnis'!B74","v":""},{"$f":"'6-Ergebnis'!C16","v":0},{"$f":"IF('2-Stellenplan'!$S$9=0,\"\",'2-Stellenplan'!$S$9)","v":""},{"$f":"'6-Ergebnis'!E74","v":""},{"$f":"'6-Ergebnis'!G74","v":""},{"$f":"'6-Ergebnis'!I74","v":""}]
[null,null,{"$f":"'6-Ergebnis'!B75","v":""},{"$f":"'6-Ergebnis'!C17","v":0},{"$f":"IF('2-Stellenplan'!$T$9=0,\"\",'2-Stellenplan'!$T$9)","v":""},{"$f":"'6-Ergebnis'!E75","v":""},{"$f":"'6-Ergebnis'!G75","v":""},{"$f":"'6-Ergebnis'!I75","v":""}]
[null,null,{"$f":"'6-Ergebnis'!B76","v":""},{"$f":"'6-Ergebnis'!C18","v":0},{"$f":"IF('2-Stellenplan'!$U$9=0,\"\",'2-Stellenplan'!$U$9)","v":""},{"$f":"'6-Ergebnis'!E76","v":""},{"$f":"'6-Ergebnis'!G76","v":""},{"$f":"'6-Ergebnis'!I76","v":""}]
[]
[]
[null,"4. Die Leistungen für sozialpädagogische Fachleistungsstunden betragen für:"]
[]
[null,null,null,null,null,null,0]
[null,null,null,null,null,null,0]
[null,null,null,null,null,null,0]
[null,null,null,null,null,null,0]
[]
[null,"5. ",{"$f":"\"Die Leistungen (Anlage 1), die Qualitätsentwicklung (Anlage 2) und die Entgelte (Anlage 3) wurden nach Anhörung des hauptbelegenden öffentlichen Jugendhilfeträgers der Stadt/des Kreises \"&'1-Grunddaten'!M14&\" vereinbart.\"","v":"Die Leistungen (Anlage 1), die Qualitätsentwicklung (Anlage 2) und die Entgelte (Anlage 3) wurden nach Anhörung des hauptbelegenden öffentlichen Jugendhilfeträgers der Stadt/des Kreises  vereinbart."}]
[null,"6. ","Die vom Einrichtungsträger vorgelegte Leistungs- und Qualitätsentwicklungsbeschreibung sowie die Kostenkalkulation beruhen auf der Grundlage des SGB VIII. Der öffentliche Jugendhilfeträger bestätigt, dass die vereinbarten Entgelte sich nachvollziehbar aus der Leistungs- und der Qualitätsentwicklungsvereinbarung ergeben."]
[null,"7. ","Der Einrichtungsträger verpflichtet sich, die vereinbarten Leistungen bedarfsgerecht im vereinbarten Umfang und in der vereinbarten Qualität zu erbringen."]
[null,"8. ","Bei unvorhersehbaren wesentlichen Änderungen der Annahmen für den laufenden Vereinbarungszeitraum, die diesen Vereinbarungen zugrunde liegen, sind die Vereinbarungen auf Verlangen einer Vereinbarungspartei neu zu verhandeln."]
[null,"9. ","Der erforderliche Qualitätsdialog zwischen den Vereinbarungspartnern erfolgt vor Ablauf des Vereinbarungszeitraums."]
[null,"10. ","Vereinbarte Leistungsentgelte können pauschal fortgeschrieben werden, wenn der öffentliche Jugendhilfeträger nicht widerspricht. "]
[null,"11. ","Der öffentliche Jugendhilfeträger sendet unverzüglich eine Durchschrift der Vereinbarungen an die Entgeltstelle-Jugendhilfe des jeweiligen Landschaftsverbandes. Der Einrichtungsträger sendet unverzüglich eine Durchschrift der Vereinbarungen an das Landesjugendamt, die belegenden Jugendämter und an seinen Spitzenverband."]
[null,"12. ","(Sonstiges)"]
[]
[]
[null,"Ort / Datum"]
[]
[]
[]
[]
[null,"Stadt/Kreis Einrichtungsträger",null,null,"Stempel/Unterschrif"]
[]
[]
[]
[]
[null,"Einrichtungsträger",null,null,"Stempel/Unterschrif"]
[]
[null,null,"Anlagen: ",{"$f":"IF(B25=0,\"\",B25)","v":""},"1. Vereinbarte Leistungen"]
[null,null,null,{"$f":"IF(B26=0,\"\",B26)","v":""},"2. Vereinbarte Qualitätsentwicklung"]
[null,null,null,{"$f":"IF(B27=0,\"\",B27)","v":""},"3. Vereinbarte Leistungsentgelte"]

{"sheet":"Info-Katalog","index":9,"n_rows":47,"n_cols":4,"rows_kept":47,"cut":false,"hidden":false,"merged":[[0,0,0,3],[23,0,23,3]]}
["Informationen zur Übermittlung an die Entgeltstelle Jugendhilfe bei den Landschaftsverbänden"]
[]
["Auf Basis der Entgeltkalkulation wurde zwischen"]
["der Einrichtung:"]
[null,{"$f":"'1-Grunddaten'!D9","v":0}]
[null,{"$f":"'1-Grunddaten'!D10","v":0}]
[null,{"$f":"'1-Grunddaten'!D11","v":0}]
[null,{"$f":"'1-Grunddaten'!D12","v":0}]
[null,{"$f":"'1-Grunddaten'!D13","v":0}]
[]
["und dem Jugendhilfeträger:"]
[null,{"$f":"'1-Grunddaten'!M9","v":0}]
[null,{"$f":"'1-Grunddaten'!M10","v":0}]
[null,{"$f":"'1-Grunddaten'!M11","v":0}]
[]
["AZ der Betriebserlaubnis:"]
[null,{"$f":"'1-Grunddaten'!D24","v":0}]
[]
["Spitzen-, Träger- bzw. Interessenverband:"]
[null,{"$f":"'1-Grunddaten'!M19&\" \"&'1-Grunddaten'!M20&\" \"&'1-Grunddaten'!M21","v":"  "}]
[]
["eine Entgeltvereinbarung ab dem:",null,{"$f":"IF('7-Niederschrift'!E33=0,'8-Niederschrift (frei)'!E33,'7-Niederschrift'!E33)","v":"00:00:00"},"geschlossen."]
[]
["Aufgrund des Beschlusses der Landeskommission Jugendhilfe NRW vom 25.11.2009 werden neben der Entgeltvereinbarung die nachstehenden Daten an die Geschäftsstelle der Landeskommision zur Aktualisierung des Info-Kataloges übermittelt."]
[]
["Auslastungsquote",null,null,{"$f":"Auslastung","v":0}]
[]
["Abwesenheitsquote",null,null,{"$f":"AbwesenheitProzent","v":0}]
[]
["Summe der variablen Sachkosten je Kalendertag",null,null,{"$f":"'5-Sachaufwand'!$G$19","v":0}]
[]
["Summe Steuern, Abgaben, Versicherung je Kalendertag",null,null,{"$f":"'5-Sachaufwand'!$G$29","v":""}]
[]
["Summe Versicherung je Kalendertag",null,null,{"$f":"'5-Sachaufwand'!$G$30","v":""}]
[]
["Investitionsauwendungen je Kalendertag",null,null,{"$f":"'5-Sachaufwand'!$G$28","v":""}]
[]
["Anzahl der Plätze in eigenen Häusern",null,null,{"$f":"SUMIF('4-Invest.kosten'!F25:F30,\"e\",'4-Invest.kosten'!G25:G30)","v":0}]
[]
["Anzahl der Plätze in angemieteten Objekten",null,null,{"$f":"SUMIF('4-Invest.kosten'!F25:F30,\"m\",'4-Invest.kosten'!G25:G30)","v":0}]
[]
["Gesamtsumme Personalaufwand",null,null,{"$f":"'3-Perso.aufw.'!H12","v":0}]
[]
["Anteilsverhältnis:",null,"Gesamtpersonalaufwand",{"$f":"'3-Perso.aufw.'!H16/('3-Perso.aufw.'!H16+'6-Ergebnis'!K57+'6-Ergebnis'!K58)","v":{"$error":"#DIV/0!"}}]
[]
[null,null,"Sachaufwand",{"$f":"('6-Ergebnis'!K57+'6-Ergebnis'!K58)/('3-Perso.aufw.'!H16+'6-Ergebnis'!K57+'6-Ergebnis'!K58)","v":{"$error":"#DIV/0!"}}]
[null,null,"(variabler Sachaufwand + Investitionsaufwendungen + fixer Sachaufwand)"]